﻿Department family,Entity,Date,Expense type,Expense area,Supplier,Transaction number,Amount,VAT registration number
Dept of Health,MHRA,04/01/2021,"Service, Integration & Management - Enterprise Architecture","Technology, Digital, Data & Delivery",Ernst & Young LLP,GB01G000150351,"43,812.00",773831408
Dept of Health,MHRA,04/01/2021,"Service, Integration & Management - Enterprise Architecture","Technology, Digital, Data & Delivery",Ernst & Young LLP,GB01G000150368,"60,606.00",773831408
Dept of Health,MHRA,04/01/2021,Help desk and end user support,"Technology, Digital, Data & Delivery",Insight Networking Solutions,5100372,"65,202.02",746075129
Dept of Health,MHRA,05/01/2021,IT Consultancy,"Technology, Digital, Data & Delivery",EXTEDO GmbH,202001247,"64,376.38",
Dept of Health,MHRA,06/01/2021,Software & Licences,"Technology, Digital, Data & Delivery",ABM Intelligence Ltd,ABMINV2020-111,"43,698.00",930920734
Dept of Health,MHRA,06/01/2021,Infrastructure Services and Maintenance,"Technology, Digital, Data & Delivery",Akhter Computer PLC,SI0048427,"137,645.76",532262963
Dept of Health,MHRA,06/01/2021,Infrastructure Services and Maintenance,"Technology, Digital, Data & Delivery",Akhter Computer PLC,SI0048428,"46,784.11",532262963
Dept of Health,MHRA,06/01/2021,Infrastructure Services and Maintenance,"Technology, Digital, Data & Delivery",Akhter Computer PLC,SI0048429,"43,609.37",532262963
Dept of Health,MHRA,06/01/2021,Accommodation Rent,Facilities & Estates,Government Property Agency,00000001/5350,"95,448.75",888801080
Dept of Health,MHRA,06/01/2021,Accommodation Rent,Facilities & Estates,Government Property Agency,00000001/5351,"48,989.25",888801080
Dept of Health,MHRA,06/01/2021,Accommodation Rent,Facilities & Estates,Government Property Agency,00000001/5352,"465,399.75",888801080
Dept of Health,MHRA,06/01/2021,Facilities Management & Portering,Facilities & Estates,Government Property Agency,00000001/5726,"37,818.25",888801080
Dept of Health,MHRA,06/01/2021,Accommodation Rates,Facilities & Estates,Government Property Agency,00000001/5726,"32,167.25",888801080
Dept of Health,MHRA,06/01/2021,Accommodation Service Charge,Facilities & Estates,Government Property Agency,00000001/5726,"11,735.25",888801080
Dept of Health,MHRA,06/01/2021,Electricity,Facilities & Estates,Government Property Agency,00000001/5726,"10,431.25",888801080
Dept of Health,MHRA,06/01/2021,Facilities Management & Portering,Facilities & Estates,Government Property Agency,00000001/5726,"2,607.75",888801080
Dept of Health,MHRA,06/01/2021,Infrastructure Services and Maintenance,Facilities & Estates,Government Property Agency,00000001/5726,"2,246.25",888801080
Dept of Health,MHRA,06/01/2021,Accommodation Service Charge,Facilities & Estates,Government Property Agency,00000001/5726,"1,679.25",888801080
Dept of Health,MHRA,06/01/2021,Facilities Management & Portering,Facilities & Estates,Government Property Agency,00000001/5727,"19,410.25",888801080
Dept of Health,MHRA,06/01/2021,Accommodation Rates,Facilities & Estates,Government Property Agency,00000001/5727,"16,510.00",888801080
Dept of Health,MHRA,06/01/2021,Accommodation Service Charge,Facilities & Estates,Government Property Agency,00000001/5727,"6,023.00",888801080
Dept of Health,MHRA,06/01/2021,Electricity,Facilities & Estates,Government Property Agency,00000001/5727,"5,354.00",888801080
Dept of Health,MHRA,06/01/2021,Facilities Management & Portering,Facilities & Estates,Government Property Agency,00000001/5727,"1,338.50",888801080
Dept of Health,MHRA,06/01/2021,Infrastructure Services and Maintenance,Facilities & Estates,Government Property Agency,00000001/5727,"1,152.75",888801080
Dept of Health,MHRA,06/01/2021,Accommodation Service Charge,Facilities & Estates,Government Property Agency,00000001/5727,862.00,888801080
Dept of Health,MHRA,06/01/2021,Infrastructure Services and Maintenance,"Technology, Digital, Data & Delivery",Sungard Availability Services (UK) Limited,20005770,"53,999.99",823829709
Dept of Health,MHRA,11/01/2021,Application Services and Maintenance,"Technology, Digital, Data & Delivery",Accenture (UK) Limited,3003493791,"26,500.01",788629066
Dept of Health,MHRA,11/01/2021,Application Services and Maintenance,"Technology, Digital, Data & Delivery",Accenture (UK) Limited,3003493792,"350,734.07",788629066
Dept of Health,MHRA,11/01/2021,Contracted Out Services Miscellaneous,Vigilance & Risk Management of Medicines,Commonwealth Informatics Inc,GBP66,"45,613.13",
Dept of Health,MHRA,11/01/2021,Contracted Out Services Miscellaneous,"Technology, Digital, Data & Delivery",Credera Limited,INV006183,"134,958.00",283541886
Dept of Health,MHRA,11/01/2021,Lab Equipment Repairs and Maintenance,Operations,Global Life Sciences Solutions Operations UK Ltd (Cytiva),584124598,"30,691.20",333194219
Dept of Health,MHRA,11/01/2021,Facilities Management & Portering,Facilities & Estates,Government Property Agency,00000001/5728,"184,398.50",888801080
Dept of Health,MHRA,11/01/2021,Accommodation Rates,Facilities & Estates,Government Property Agency,00000001/5728,"156,844.50",888801080
Dept of Health,MHRA,11/01/2021,Accommodation Service Charge,Facilities & Estates,Government Property Agency,00000001/5728,"57,219.25",888801080
Dept of Health,MHRA,11/01/2021,Electricity,Facilities & Estates,Government Property Agency,00000001/5728,"50,862.25",888801080
Dept of Health,MHRA,11/01/2021,Facilities Management & Portering,Facilities & Estates,Government Property Agency,00000001/5728,"12,715.50",888801080
Dept of Health,MHRA,11/01/2021,Infrastructure Services and Maintenance,Facilities & Estates,Government Property Agency,00000001/5728,"10,952.25",888801080
Dept of Health,MHRA,11/01/2021,Accommodation Service Charge,Facilities & Estates,Government Property Agency,00000001/5728,"8,188.00",888801080
Dept of Health,MHRA,11/01/2021,"Service, Integration & Management (SIAM)","Technology, Digital, Data & Delivery",Redrock Consulting Ltd,9645,"45,306.34",862247715
Dept of Health,MHRA,11/01/2021,"Service, Integration & Management (SIAM)","Technology, Digital, Data & Delivery",Redrock Consulting Ltd,9660,"53,929.37",862247715
Dept of Health,MHRA,18/01/2021,Gas,Operations,Corona Energy Retail 4 Ltd,15781610,"49,050.79",577704800
Dept of Health,MHRA,18/01/2021,Electricity,Operations,EDF Energy,9014418,"83,466.86",523041202
Dept of Health,MHRA,18/01/2021,Help desk and end user support,"Technology, Digital, Data & Delivery",Insight Networking Solutions,5132305,"65,202.02",746075129
Dept of Health,MHRA,18/01/2021,Library & Periodical Subscriptions,Communications,LM Prenax UK,1549499,"56,376.70",356947157
Dept of Health,MHRA,18/01/2021,Library & Periodical Subscriptions,Communications,LM Prenax UK,1549500,"59,581.29",356947157
Dept of Health,MHRA,18/01/2021,Infrastructure Services and Maintenance,"Technology, Digital, Data & Delivery",NTT Data UK Ltd,4017764,"185,896.90",159334590
Dept of Health,MHRA,18/01/2021,Infrastructure Services and Maintenance,"Technology, Digital, Data & Delivery",NTT Data UK Ltd,4017765,"44,181.90",159334590
Dept of Health,MHRA,18/01/2021,Contracted Out Services Miscellaneous,"Technology, Digital, Data & Delivery",Redrock Consulting Ltd,9683,"30,280.46",862247715
Dept of Health,MHRA,20/01/2021,Application Services and Maintenance,"Technology, Digital, Data & Delivery",Accenture (UK) Limited,3003494327,"56,770.80",788629066
Dept of Health,MHRA,20/01/2021,"Service, Integration & Management - Enterprise Architecture","Technology, Digital, Data & Delivery",Ernst & Young LLP,GB01G000150436,"41,757.00",773831408
Dept of Health,MHRA,20/01/2021,Solicitors,Policy,Government Legal Department,A3172,"279,900.00",888823066
Dept of Health,MHRA,20/01/2021,"Advertising, publicity & promotion",Communications,Health Unlimited Limited,170403875,"50,562.00",156008918
Dept of Health,MHRA,20/01/2021,Contracted Out Services Miscellaneous,"Technology, Digital, Data & Delivery",Red Badger Consulting Limited,1300,"90,090.00",990808582
Dept of Health,MHRA,20/01/2021,Contracted Out Services Miscellaneous,"Technology, Digital, Data & Delivery",Redrock Consulting Ltd,9648,"67,565.47",862247715
Dept of Health,MHRA,20/01/2021,Contracted Out Services Miscellaneous,"Technology, Digital, Data & Delivery",Redrock Consulting Ltd,9659,"69,536.00",862247715
Dept of Health,MHRA,20/01/2021,Software & Licences,"Technology, Digital, Data & Delivery",Trustmarque Solutions Limited,2311632,"25,794.29",394593601
Dept of Health,MHRA,20/01/2021,Infrastructure Services and Maintenance,"Technology, Digital, Data & Delivery",Trustmarque Solutions Limited,2311657,"76,629.00",394593601
Dept of Health,MHRA,20/01/2021,Infrastructure Services and Maintenance,"Technology, Digital, Data & Delivery",Trustmarque Solutions Limited,2311659,"62,565.31",394593601
Dept of Health,MHRA,20/01/2021,Software & Licences,"Technology, Digital, Data & Delivery",Trustmarque Solutions Limited,2311660,"200,436.63",394593601
Dept of Health,MHRA,20/01/2021,Software & Licences,"Technology, Digital, Data & Delivery",Trustmarque Solutions Limited,2311953,"253,615.70",394593601
Dept of Health,MHRA,25/01/2021,Application Services and Maintenance,"Technology, Digital, Data & Delivery",Accenture (UK) Limited,3003494312,"120,129.73",788629066
Dept of Health,MHRA,25/01/2021,Application Services and Maintenance,"Technology, Digital, Data & Delivery",Accenture (UK) Limited,3003494336,"56,322.00",788629066
Dept of Health,MHRA,25/01/2021,Library & Periodical Subscriptions,Communications,LM Prenax UK,1549668,"25,622.37",356947157
Dept of Health,MHRA,25/01/2021,Infrastructure Services and Maintenance,"Technology, Digital, Data & Delivery",Trustmarque Solutions Limited,2311950,"74,569.80",394593601
